fUST/lending_fUST_20250501
["ID","MTS","AMOUNT","RATE_DAILY","PERIOD"]
[359478465,1746049845172,-358.02,0.00038356,12]
[359478466,1746049845182,-400.0,0.00038356,12]
[359478467,1746049845191,-400.0,0.00038356,12]
[359478468,1746049845201,-400.0,0.00038356,12]
[359478469,1746049845210,-400.0,0.00038356,12]
[359478470,1746049845220,-400.0,0.00038356,12]
[359478471,1746049845229,-400.0,0.00038356,12]
[359478472,1746049845239,-400.0,0.00038356,12]
[359478473,1746049845248,-400.0,0.00038356,12]
[359478474,1746049845258,-400.0,0.00038356,12]
[359478475,1746049845267,-400.0,0.00038356,12]
[359478476,1746049845277,-410.64,0.00038356,12]
[359478477,1746049845285,-410.65501489,0.00038356,12]
[359478478,1746049845295,-400.0,0.00038356,12]
[359478479,1746049845304,-400.0,0.00038356,12]
[359478480,1746049845313,-400.0,0.00038356,12]
[359478481,1746049845322,-237.13473451,0.00038356,12]
[359478482,1746049845331,-400.0,0.00038356,12]
[359478483,1746049845340,-400.0,0.00038356,12]
[359478484,1746049845349,-400.0,0.00038356,12]
[359478485,1746049845358,-400.0,0.00038356,12]
[359478486,1746049845368,-400.0,0.00038356,12]
[359478487,1746049845377,-400.0,0.00038356,12]
[359478488,1746049845386,-88.54906569,0.00038356,12]
[359478490,1746049845494,-311.45093431,0.00038356,12]
[359478491,1746049845504,-400.0,0.00038356,12]
[359478492,1746049845513,-400.0,0.00038356,12]
[359478494,1746049845522,-447.34,0.00038356,12]
[359478495,1746049845532,-400.0,0.00038356,12]
[359478496,1746049845542,-400.0,0.00038356,12]
[359478497,1746049845552,-400.0,0.00038356,12]
[359478498,1746049845562,-400.0,0.00038356,12]
[359478499,1746049845571,-400.0,0.00038356,12]
[359478500,1746049845581,-400.0,0.00038356,12]
[359478501,1746049845591,-400.0,0.00038356,12]
[359478502,1746049845600,-400.0,0.00038356,12]
[359478503,1746049845611,-400.0,0.00038356,12]
[359478504,1746049845620,-204.48,0.00038356,12]
[359478505,1746049845630,-400.0,0.00038356,12]
[359478506,1746049845640,-400.0,0.00038356,12]
[359478507,1746049845651,-400.0,0.00038356,12]
[359478508,1746049845661,-400.0,0.00038356,12]
[359478509,1746049845671,-518.88979041,0.00038356,12]
[359478510,1746049845681,-400.0,0.00038356,12]
[359478511,1746049845691,-400.0,0.00038356,12]
[359478512,1746049845700,-400.0,0.00038356,12]
[359478513,1746049845711,-200.0,0.00038356,12]
[359478514,1746049845721,-434.47351008,0.00038356,12]
[359478515,1746049845730,-400.0,0.00038356,12]
[359478516,1746049845741,-400.000001,0.00038356,12]
[359478517,1746049845753,-400.0,0.00038356,12]
[359478518,1746049845763,-400.0,0.00038356,12]
[359478519,1746049845773,-400.0,0.00038356,12]
[359478520,1746049845782,-400.0,0.00038356,12]
[359478521,1746049845791,-231.00252373,0.00038356,12]
[359478522,1746049845800,-400.0,0.00038356,12]
[359478523,1746049845809,-400.0,0.00038356,12]
[359478524,1746049845819,-400.0,0.00038356,12]
[359478525,1746049845830,-400.0,0.00038356,12]
[359478526,1746049845840,-400.0,0.00038356,12]
[359478527,1746049845850,-381.32537077,0.00038356,12]
[359478528,1746049845860,-400.0,0.00038356,12]
[359478529,1746049845873,-270.8578697,0.00038356,12]
[359478542,1746049846123,-421.37435881,0.0003627,2]
[359478543,1746049846133,-129.1421303,0.00038356,12]
[359478545,1746049846144,-400.0,0.00038356,12]
[359478546,1746049846153,-400.0,0.00038356,12]
[359478547,1746049846163,-400.0,0.00038356,12]
[359478548,1746049846172,-400.0,0.00038356,12]
[359478549,1746049846182,-400.0,0.00038356,12]
[359478550,1746049846192,-260.18,0.00038356,12]
[359478551,1746049846203,-400.0,0.00038356,12]
[359478552,1746049846213,-400.0,0.00038356,12]
[359478553,1746049846225,-400.0,0.00038356,12]
[359478554,1746049846236,-400.0,0.00038356,12]
[359478555,1746049846246,-400.0,0.00038356,12]
[359478556,1746049846256,-400.0,0.00038356,12]
[359478557,1746049846265,-400.0,0.00038356,12]
[359478558,1746049846275,-400.0,0.00038356,12]
[359478559,1746049846284,-400.0,0.00038356,12]
[359478560,1746049846295,-400.0,0.00038356,12]
[359478561,1746049846304,-400.0,0.00038356,12]
[359478562,1746049846315,-200.0,0.00038356,12]
[359478563,1746049846325,-400.0,0.00038356,12]
[359478564,1746049846335,-400.0,0.00038356,12]
[359478565,1746049846346,-400.0,0.00038356,12]
[359478566,1746049846356,-291.6,0.00038356,12]
[359478567,1746049846366,-400.0,0.00038356,12]
[359478568,1746049846377,-176.05669024,0.00038356,12]
[359478569,1746049846393,-223.94330976,0.00038356,12]
[359478570,1746049846403,-127.64763795,0.00038356,12]
[359478587,1746050825100,-265.4084423,0.00027297,2]
[359478588,1746050838110,-463.89355618,0.00027297,2]
[359478589,1746050839097,-270.69800152,0.00027297,2]
[359478590,1746050839117,-102.77799375,0.00027397,2]
[359478591,1746050853080,-321.93078565,0.00025197,2]
[359478594,1746050950089,-413.12339339,0.00025197,2]
[359478595,1746050950112,-1000.0,0.00027197,2]
[359478596,1746050950134,-153.33469079,0.00027297,2]
[359478597,1746050950155,-217.43180225,0.00027397,2]
[359478598,1746050950178,-735.05417904,0.00030197,2]
[359478599,1746050950202,-209.2176343,0.00032282,2]
[359478600,1746050950230,-189.0,0.00032877,3]
[359478601,1746050950257,-320.209796,0.00033165,2]
[359478602,1746050952601,859.264116,0.00032282,2]
[359478603,1746050955886,155.36175,0.00030937,2]
[359478606,1746051007926,568.940011,0.00033079,2]
[359478607,1746051023632,303.0,0.0003,2]
[359478608,1746051029855,3212.93029688,0.00033568,2]
[359478609,1746051029877,3005.86982406,0.00033568,2]
[359478618,1746051032254,-2258.99737925,0.00033568,2]
[359478619,1746051032267,-1522.20249981,0.00033568,2]
[359478620,1746051032276,-153.33469079,0.0003474,2]
[359478621,1746051032286,-1600.0,0.0003484,3]
[359478622,1746051032298,-400.0,0.0003484,3]
[359478623,1746051032308,-500.0,0.00034841,7]
[359478624,1746051032318,-628.90698989,0.00034841,7]
[359478625,1746051032328,-500.0,0.00034841,7]
[359478626,1746051032339,-342.68505617,0.00034841,7]
[359478627,1746051032349,-500.0,0.00034841,7]
[359478628,1746051032359,-500.0,0.00034841,7]
[359478629,1746051032368,-203.35813814,0.00034841,7]
[359478630,1746051032378,-500.0,0.00034841,7]
[359478631,1746051032387,-500.0,0.00034841,7]
[359478632,1746051032397,-500.0,0.00034841,7]
[359478633,1746051032406,-500.0,0.00034841,7]
[359478634,1746051032416,-500.0,0.00034841,7]
[359478635,1746051032426,-500.0,0.00034841,7]
[359478636,1746051032435,-500.0,0.00034841,7]
[359478637,1746051032445,-500.0,0.00034841,7]
[359478638,1746051032455,-5.20185321,0.00034841,7]
[359478644,1746051038297,-494.79814679,0.00034841,7]
[359478645,1746051038310,-500.0,0.00034841,7]
[359478646,1746051038323,-500.0,0.00034841,7]
[359478647,1746051038336,-500.0,0.00034841,7]
[359478648,1746051038346,-316.0,0.00034842,2]
[359478649,1746051038357,-9505.00634573,0.00034842,2]
[359478650,1746051038372,-6388.12986584,0.00034842,2]
[359478651,1746051038386,-7717.99604921,0.00034842,2]
[359478652,1746051038400,-1288.86773922,0.00034842,2]
[359478653,1746051038412,-735.05417904,0.00035197,2]
[359478654,1746051038424,-50000.0,0.00035245,2]
[359478655,1746051038436,-188.172184,0.00035246,2]
[359478656,1746051038449,-250.0,0.00035246,2]
[359478657,1746051038461,-500.0,0.00035273,5]
[359478658,1746051038472,-507.16219905,0.00035273,5]
[359478659,1746051038484,-500.0,0.00035273,5]
[359478660,1746051038495,-500.0,0.00035273,5]
[359478661,1746051038508,-500.0,0.00035273,5]
[359478662,1746051038520,-300.0,0.00035273,5]
[359478663,1746051038531,-500.0,0.00035273,5]
[359478664,1746051038543,-500.0,0.00035273,5]
[359478665,1746051038555,-295.20703301,0.00035273,5]
[359478666,1746051038568,-412.67142178,0.00035273,3]
[359478667,1746051038580,-569.66979079,0.00035273,5]
[359478668,1746051038591,-500.0,0.00035273,5]
[359478669,1746051038603,-500.0,0.00035273,2]
[359478670,1746051038616,-500.0,0.0003555,5]
[359478671,1746051038628,-500.0,0.0003555,5]
[359478672,1746051038641,-155.0,0.00035616,2]
[359478673,1746051038653,-160.0,0.00035778,2]
[359478674,1746051038664,-355.93632656,0.00035844,2]
[359478675,1746051038675,-529.002145,0.00035884,2]
[359478676,1746051038685,-840.90604152,0.00035987,2]
[359478677,1746051038696,-160.0,0.00035987,2]
[359478678,1746051038709,-208.45243434,0.00036281,2]
[359478679,1746051038720,-300.0,0.00036916,5]
[359478680,1746051038732,-477.5,0.00037075,30]
[359478681,1746051038745,-151.0,0.00037459,2]
[359478682,1746051038757,-806.0,0.00037511,3]
[359478683,1746051038770,-270.03606524,0.00037947,3]
[359478684,1746051038781,-2743.17639827,0.00037967,2]
[359478685,1746051038794,-6111.7577204,0.00038256,2]
[359478686,1746051038807,-314.19083097,0.00038273,5]
[359478687,1746051038819,-306.07151977,0.00038338,2]
[359478688,1746051038832,-1350.1803262,0.00038346,3]
[359478689,1746051038843,-3780.50491336,0.00038346,3]
[359478690,1746051038856,-502.60921342,0.00038355,12]
[359478691,1746051038867,-207.4,0.00038355,12]
[359478692,1746051038878,-215.0738,0.00038355,12]
[359478693,1746051038889,-223.0315306,0.00038355,12]
[359478694,1746051038901,-231.28369723,0.00038355,12]
[359478695,1746051038913,-183.23237217,0.00038355,12]
[359478696,1746051038924,-17801.31861108,0.00038355,3]
[359478697,1746051038935,-52674.32455404,0.00038356,2]
[359478698,1746051038951,-129364.91891702,0.00038356,2]
[359478699,1746051038965,-500.0,0.00038356,12]
[359478700,1746051038978,-400.0,0.00038356,12]
[359478701,1746051038990,-500.0,0.00038356,12]
[359478702,1746051039001,-400.0,0.00038356,12]
[359478703,1746051039011,-400.0,0.00038356,12]
[359478704,1746051039021,-503.35693524,0.00038356,12]
[359478705,1746051039033,-400.0,0.00038356,12]
[359478706,1746051039045,-400.0,0.00038356,5]
[359478707,1746051039057,-400.0,0.00038356,5]
[359478708,1746051039069,-500.0,0.00038356,12]
[359478709,1746051039082,-400.0,0.00038356,12]
[359478710,1746051039093,-200.0,0.00038356,12]
[359478711,1746051039105,-400.0,0.00038356,12]
[359478712,1746051039116,-513.03364536,0.00038356,12]
[359478713,1746051039128,-400.0,0.00038356,12]
[359478714,1746051039139,-400.0,0.00038356,12]
[359478715,1746051039150,-400.0,0.00038356,12]
[359478716,1746051039161,-400.0,0.00038356,12]
[359478717,1746051039172,-400.0,0.00038356,12]
[359478718,1746051039183,-400.0,0.00038356,12]
[359478719,1746051039194,-400.0,0.00038356,12]
[359478720,1746051039205,-400.0,0.00038356,12]
[359478721,1746051039215,-400.0,0.00038356,12]
[359478722,1746051039228,-400.0,0.00038356,12]
[359478723,1746051039240,-500.0,0.00038356,12]
[359478724,1746051039257,-400.0,0.00038356,12]
[359478725,1746051039267,-400.0,0.00038356,12]
[359478726,1746051039279,-400.0,0.00038356,12]
[359478727,1746051039291,-400.0,0.00038356,12]
[359478728,1746051039303,-501.21226367,0.00038356,12]
[359478729,1746051039314,-400.0,0.00038356,12]
[359478730,1746051039326,-400.0,0.00038356,12]
[359478731,1746051039338,-400.0,0.00038356,12]
[359478732,1746051039349,-400.0,0.00038356,12]
[359478733,1746051039360,-400.0,0.00038356,12]
[359478734,1746051039371,-400.0,0.00038356,12]
[359478735,1746051039382,-400.0,0.00038356,12]
[359478736,1746051039393,-400.0,0.00038356,12]
[359478737,1746051039403,-534.65893302,0.00038356,12]
[359478738,1746051039414,-400.0,0.00038356,12]
[359478739,1746051039426,-329.74334262,0.00038356,12]
[359478740,1746051039437,-500.0,0.00038356,12]
[359478741,1746051039448,-500.0,0.00038356,12]
[359478742,1746051039459,-400.0,0.00038356,12]
[359478743,1746051039470,-400.0,0.00038356,12]
[359478744,1746051039481,-400.0,0.00038356,12]
[359478745,1746051039492,-500.0,0.00038356,12]
[359478746,1746051039503,-400.0,0.00038356,12]
[359478747,1746051039514,-400.0,0.00038356,12]
[359478748,1746051039524,-317.77894226,0.00038356,12]
[359478749,1746051039535,-202.8591018,0.00038356,12]
[359478750,1746051039546,-151.0,0.00038356,14]
[359478751,1746051039558,-400.0,0.00038356,12]
[359478752,1746051039569,-400.0,0.00038356,12]
[359478753,1746051039582,-400.0,0.00038356,12]
[359478754,1746051039593,-400.0,0.00038356,12]
[359478755,1746051039605,-265.82,0.00038356,12]
[359478756,1746051039616,-204.59063616,0.00038356,12]
[359478757,1746051039628,-400.0,0.00038356,12]
[359478758,1746051039639,-400.0,0.00038356,12]
[359478759,1746051039651,-400.0,0.00038356,12]
[359478760,1746051039662,-400.0,0.00038356,12]
[359478761,1746051039674,-400.0,0.00038356,12]
[359478762,1746051039685,-400.0,0.00038356,12]
[359478763,1746051039696,-400.0,0.00038356,12]
[359478764,1746051039707,-400.0,0.00038356,12]
[359478765,1746051039718,-400.0,0.00038356,12]
[359478766,1746051039730,-400.0,0.00038356,12]
[359478767,1746051039741,-400.0,0.00038356,12]
[359478768,1746051039754,-400.0,0.00038356,12]
[359478769,1746051039765,-400.0,0.00038356,12]
[359478771,1746051039776,-400.0,0.00038356,12]
[359478773,1746051039787,-400.0,0.00038356,12]
[359478774,1746051039798,-400.0,0.00038356,12]
[359478775,1746051039809,-400.0,0.00038356,12]
[359478776,1746051039820,-505.33011739,0.00038356,12]
[359478777,1746051039832,-400.0,0.00038356,12]
[359478778,1746051039843,-400.0,0.00038356,12]
[359478779,1746051039854,-400.0,0.00038356,12]
[359478780,1746051039865,-549.1,0.00038356,12]
[359478781,1746051039876,-400.0,0.00038356,12]
[359478782,1746051039887,-300.0,0.00038356,12]
[359478783,1746051039897,-207.14471791,0.00038356,12]
[359478785,1746051039908,-258.02053089,0.00038356,12]
[359478787,1746051039919,-400.0,0.00038356,12]
[359478789,1746051039929,-400.0,0.00038356,12]
[359478791,1746051039939,-400.0,0.00038356,12]
[359478793,1746051039950,-400.0,0.00038356,12]
[359478795,1746051039959,-400.0,0.00038356,12]
[359478796,1746051039969,-400.0,0.00038356,12]
[359478797,1746051039978,-151.0,0.00038356,14]
[359478798,1746051039988,-400.0,0.00038356,12]
[359478799,1746051039998,-400.0,0.00038356,12]
[359478800,1746051040007,-400.0,0.00038356,12]
[359478801,1746051040017,-400.0,0.00038356,12]
[359478802,1746051040027,-400.0,0.00038356,12]
[359478803,1746051040036,-400.0,0.00038356,12]
[359478804,1746051040230,-400.0,0.00038356,12]
[359478805,1746051040244,-276.08,0.00038356,12]
[359478806,1746051040260,-400.0,0.00038356,12]
[359478807,1746051040270,-400.0,0.00038356,12]
[359478808,1746051040279,-400.0,0.00038356,12]
[359478809,1746051040290,-400.0,0.00038356,12]
[359478810,1746051040302,-400.0,0.00038356,12]
[359478811,1746051040312,-400.0,0.00038356,12]
[359478812,1746051040323,-400.0,0.00038356,12]
[359478813,1746051040334,-400.0,0.00038356,12]
[359478814,1746051040343,-533.47,0.00038356,12]
[359478815,1746051040353,-400.0,0.00038356,12]
[359478816,1746051040362,-300.0,0.00038356,12]
[359478817,1746051040371,-200.0,0.00038356,12]
[359478818,1746051040380,-400.0,0.00038356,12]
[359478819,1746051040390,-400.0,0.00038356,12]
[359478820,1746051040400,-400.0,0.00038356,12]
[359478821,1746051040410,-400.0,0.00038356,12]
[359478822,1746051040420,-400.0,0.00038356,12]
[359478823,1746051040431,-400.0,0.00038356,12]
[359478824,1746051040441,-400.0,0.00038356,12]
[359478825,1746051040451,-400.0,0.00038356,12]
[359478826,1746051040461,-400.0,0.00038356,12]
[359478827,1746051040471,-163.90463715,0.00038356,12]
[359478828,1746051040482,-151.0,0.00038356,14]
[359478829,1746051040493,-400.0,0.00038356,2]
[359478830,1746051040503,-400.0,0.00038356,2]
[359478831,1746051040513,-400.0,0.00038356,2]
[359478832,1746051040523,-400.0,0.00038356,12]
[359478833,1746051040534,-400.0,0.00038356,12]
[359478834,1746051040544,-400.0,0.00038356,12]
[359478835,1746051040555,-151.0,0.00038356,14]
[359478836,1746051040566,-151.0,0.00038356,14]
[359478837,1746051040576,-309.00852461,0.00038356,12]
[359478838,1746051040586,-400.0,0.00038356,12]
[359478839,1746051040596,-411.76396241,0.00038356,12]
[359478840,1746051040607,-304.4368688,0.00038356,12]
[359478841,1746051040618,-400.0,0.00038356,12]
[359478842,1746051040629,-400.0,0.00038356,12]
[359478843,1746051040638,-400.0,0.00038356,12]
[359478844,1746051040648,-314.96835971,0.00038356,12]
[359478845,1746051040658,-151.0,0.00038356,14]
[359478846,1746051040668,-151.0,0.00038356,14]
[359478847,1746051040678,-306.67902245,0.00038356,12]
[359478848,1746051040688,-310.87734503,0.00038356,12]
[359478849,1746051040698,-302.29674625,0.00038356,12]
[359478850,1746051040708,-335.03325173,0.00038356,12]
[359478851,1746051040717,-400.0,0.00038356,12]
[359478852,1746051040727,-400.0,0.00038356,12]
[359478853,1746051040737,-151.0,0.00038356,14]
[359478854,1746051040746,-504.3851446,0.00038356,12]
[359478855,1746051040755,-151.820212,0.00038356,14]
[359478856,1746051040764,-400.0,0.00038356,12]
[359478857,1746051040774,-400.0,0.00038356,12]
[359478858,1746051040783,-500.0,0.00038356,12]
[359478859,1746051040792,-400.0,0.00038356,12]
[359478860,1746051040801,-400.0,0.00038356,12]
[359478861,1746051040812,-400.0,0.00038356,12]
[359478862,1746051040822,-400.0,0.00038356,12]
[359478863,1746051040832,-400.0,0.00038356,12]
[359478864,1746051040842,-400.0,0.00038356,12]
[359478865,1746051040851,-400.0,0.00038356,12]
[359478866,1746051040861,-400.0,0.00038356,12]
[359478867,1746051040870,-400.0,0.00038356,12]
[359478868,1746051040879,-400.0,0.00038356,12]
[359478869,1746051040889,-400.0,0.00038356,12]
[359478870,1746051040899,-500.0,0.00038356,12]
[359478871,1746051040909,-400.0,0.00038356,12]
[359478872,1746051040919,-400.0,0.00038356,12]
[359478873,1746051040928,-400.0,0.00038356,12]
[359478874,1746051040938,-500.0,0.00038356,12]
[359478875,1746051040947,-399.0784713,0.00038356,12]
[359478876,1746051040956,-400.0,0.00038356,12]
[359478877,1746051040966,-400.0,0.00038356,12]
[359478878,1746051040975,-400.0,0.00038356,12]
[359478879,1746051040985,-400.0,0.00038356,12]
[359478880,1746051040995,-400.0,0.00038356,12]
[359478881,1746051041004,-500.0,0.00038356,12]
[359478882,1746051041014,-509.72264243,0.00038356,12]
[359478883,1746051041023,-151.0,0.00038356,14]
[359478884,1746051041032,-505.18507414,0.00038356,12]
[359478885,1746051041042,-400.0,0.00038356,12]
[359478886,1746051041051,-400.0,0.00038356,12]
[359478887,1746051041061,-400.0,0.00038356,12]
[359478888,1746051041069,-400.0,0.00038356,12]
[359478889,1746051041078,-400.0,0.00038356,12]
[359478890,1746051041089,-400.0,0.00038356,12]
[359478891,1746051041099,-400.0,0.00038356,12]
[359478892,1746051041109,-400.0,0.00038356,12]
[359478893,1746051041118,-400.0,0.00038356,12]
[359478894,1746051041128,-400.0,0.00038356,12]
[359478895,1746051041137,-396.18538446,0.00038356,12]
[359478896,1746051041146,-400.0,0.00038356,12]
[359478897,1746051041155,-400.0,0.00038356,12]
[359478898,1746051041165,-400.0,0.00038356,12]
[359478899,1746051041174,-400.0,0.00038356,12]
[359478900,1746051041183,-400.0,0.00038356,12]
[359478901,1746051041192,-400.0,0.00038356,12]
[359478902,1746051041202,-242.4490952,0.00038356,12]
[359478903,1746051041211,-400.0,0.00038356,12]
[359478904,1746051041221,-400.0,0.00038356,12]
[359478905,1746051041231,-500.0,0.00038356,12]
[359478906,1746051041241,-400.0,0.00038356,12]
[359478907,1746051041255,-393.36,0.00038356,12]
[359478908,1746051041264,-204.72364932,0.00038356,12]
[359478909,1746051041274,-400.0,0.00038356,12]
[359478910,1746051041283,-400.0,0.00038356,12]
[359478911,1746051041292,-400.0,0.00038356,12]
[359478912,1746051041302,-400.0,0.00038356,12]
[359478913,1746051041311,-192.95871272,0.00038356,12]
[359478914,1746051041321,-200.0,0.00038356,12]
[359478915,1746051041331,-400.0,0.00038356,12]
[359478916,1746051041342,-318.71390603,0.00038356,12]
[359478917,1746051041352,-400.0,0.00038356,12]
[359478918,1746051041361,-400.0,0.00038356,12]
[359478919,1746051041370,-400.0,0.00038356,12]
[359478920,1746051041380,-400.0,0.00038356,12]
[359478921,1746051041389,-371.45757309,0.00038356,12]
[359478922,1746051041399,-500.0,0.00038356,12]
[359478923,1746051041408,-400.0,0.00038356,12]
[359478924,1746051041419,-400.0,0.00038356,12]
[359478925,1746051041429,-501.05968978,0.00038356,12]
[359478926,1746051041438,-400.0,0.00038356,12]
[359478927,1746051041448,-400.0,0.00038356,12]
[359478928,1746051041458,-281.96,0.00038356,12]
[359478929,1746051041467,-400.0,0.00038356,12]
[359478930,1746051041477,-400.0,0.00038356,12]
[359478931,1746051041487,-400.0,0.00038356,12]
[359478932,1746051041496,-400.0,0.00038356,12]
[359478933,1746051041506,-400.0,0.00038356,12]
[359478934,1746051041515,-400.0,0.00038356,12]
[359478935,1746051041525,-400.0,0.00038356,12]
[359478936,1746051041535,-400.0,0.00038356,12]
[359478937,1746051041545,-416.49854394,0.00038356,12]
[359478938,1746051041554,-400.0,0.00038356,12]
[359478939,1746051041564,-400.0,0.00038356,12]
[359478940,1746051041573,-400.0,0.00038356,12]
[359478941,1746051041583,-400.0,0.00038356,12]
[359478942,1746051041593,-400.0,0.00038356,12]
[359478943,1746051041603,-400.0,0.00038356,12]
[359478944,1746051041612,-400.0,0.00038356,12]
[359478945,1746051041621,-400.0,0.00038356,12]
[359478946,1746051041630,-400.0,0.00038356,12]
[359478947,1746051041640,-540.85068818,0.00038356,12]
[359478948,1746051041649,-400.0,0.00038356,12]
[359478949,1746051041659,-400.0,0.00038356,12]
[359478950,1746051041668,-400.0,0.00038356,12]
[359478951,1746051041678,-400.0,0.00038356,12]
[359478952,1746051041687,-400.0,0.00038356,12]
[359478953,1746051041696,-207.6264653,0.00038356,12]
[359478954,1746051041706,-400.0,0.00038356,12]
[359478955,1746051041716,-400.0,0.00038356,12]
[359478956,1746051041725,-400.0,0.00038356,12]
[359478957,1746051041735,-400.0,0.00038356,12]
[359478958,1746051041745,-400.0,0.00038356,12]
[359478959,1746051041755,-400.0,0.00038356,12]
[359478960,1746051041764,-400.0,0.00038356,12]
[359478961,1746051041774,-400.0,0.00038356,12]
[359478962,1746051041783,-400.0,0.00038356,12]
[359478963,1746051041793,-400.0,0.00038356,12]
[359478964,1746051041803,-400.0,0.00038356,12]
[359478965,1746051041813,-400.0,0.00038356,12]
[359478966,1746051041825,-409.31683203,0.00038356,12]
[359478967,1746051041834,-400.0,0.00038356,12]
[359478968,1746051041844,-400.0,0.00038356,12]
[359478969,1746051041853,-505.30431843,0.00038356,12]
[359478970,1746051041863,-400.0,0.00038356,12]
[359478971,1746051041872,-235.87613439,0.00038356,12]
[359478972,1746051042382,-164.12386561,0.00038356,12]
[359478973,1746051042392,-400.0,0.00038356,12]
[359478974,1746051042402,-500.0,0.00038356,12]
[359478975,1746051042411,-400.0,0.00038356,12]
[359478976,1746051042421,-300.0,0.00038356,12]
[359478977,1746051042431,-400.0,0.00038356,12]
[359478978,1746051042440,-400.0,0.00038356,12]
[359478979,1746051042450,-375.89,0.00038356,12]
[359478980,1746051042460,-205.82570064,0.00038356,12]
[359478981,1746051042640,-194.17429936,0.00038356,12]
[359478982,1746051042650,-75.96111615,0.00038356,12]
[359478997,1746051043113,-324.03888385,0.00038356,12]
[359478998,1746051043123,-266.96111615,0.00038356,12]
[359478999,1746051043136,-133.03888385,0.00038356,12]
[359479000,1746051043146,-400.0,0.00038356,12]
[359479001,1746051043157,-400.0,0.00038356,12]
[359479002,1746051043167,-400.0,0.00038356,12]
[359479003,1746051043176,-400.0,0.00038356,12]
[359479004,1746051043185,-400.0,0.00038356,12]
[359479005,1746051043195,-400.0,0.00038356,12]
[359479006,1746051043206,-400.0,0.00038356,12]
[359479007,1746051043216,-400.0,0.00038356,12]
[359479008,1746051043227,-400.0,0.00038356,12]
[359479009,1746051043236,-400.0,0.00038356,12]
[359479010,1746051043249,-400.0,0.00038356,12]
[359479011,1746051043264,-400.0,0.00038356,12]
[359479012,1746051043274,-400.0,0.00038356,12]
[359479013,1746051043285,-400.0,0.00038356,12]
[359479014,1746051043296,-400.0,0.00038356,12]
[359479015,1746051043306,-400.0,0.00038356,12]
[359479016,1746051043315,-497.17,0.00038356,12]
[359479017,1746051043326,-500.0,0.00038356,12]
[359479018,1746051043336,-400.0,0.00038356,12]
[359479019,1746051043345,-400.0,0.00038356,12]
[359479020,1746051043355,-400.0,0.00038356,12]
[359479021,1746051043364,-400.0,0.00038356,12]
[359479022,1746051043374,-400.0,0.00038356,12]
[359479023,1746051043383,-400.0,0.00038356,12]
[359479024,1746051043393,-400.0,0.00038356,12]
[359479025,1746051043403,-400.0,0.00038356,12]
[359479026,1746051043414,-400.0,0.00038356,12]
[359479027,1746051043423,-400.0,0.00038356,12]
[359479028,1746051043433,-449.7368586,0.00038356,12]
[359479029,1746051043443,-400.0,0.00038356,12]
[359479030,1746051043453,-400.0,0.00038356,12]
[359479031,1746051043462,-400.0,0.00038356,12]
[359479032,1746051043472,-400.0,0.00038356,12]
[359479033,1746051043482,-400.0,0.00038356,12]
[359479034,1746051043491,-295.74613587,0.00038356,12]